[Event "Early-Titled-Tuesday-Blitz-February-20-2024"]
[Site "Chess.com"]
[Date "2024.02.20"]
[Round "6"]
[White "Preobrazhenska_D2011"]
[Black "CarlosjPineror"]
[Result "0-1"]
[WhiteElo "2377"]
[BlackElo "2571"]
[TimeControl "180+1"]
[EndTime "9:09:30 PST"]
[Termination "CarlosjPineror won by checkmate"]

1. e4 {[%clk 0:02:57.9]} 1... c5 {[%clk 0:03:00]} 2. Nf3 {[%clk 0:02:58.3]} 2...
e6 {[%clk 0:02:59.7]} 3. d4 {[%clk 0:02:58.6]} 3... cxd4 {[%clk 0:03:00.6]} 4.
Nxd4 {[%clk 0:02:59.4]} 4... a6 {[%clk 0:03:01.1]} 5. Bd3 {[%clk 0:02:59.6]}
5... Qc7 {[%clk 0:03:01.4]} 6. O-O {[%clk 0:02:57.7]} 6... Nf6 {[%clk
0:03:01.9]} 7. Qe2 {[%clk 0:02:58]} 7... h5 {[%clk 0:03:02.1]} 8. h3 {[%clk
0:02:37.9]} 8... d6 {[%clk 0:02:57.7]} 9. c4 {[%clk 0:02:35.4]} 9... Be7 {[%clk
0:02:57.5]} 10. b3 {[%clk 0:02:30.9]} 10... Nbd7 {[%clk 0:02:57]} 11. Bb2 {[%clk
0:02:27.6]} 11... b6 {[%clk 0:02:57.1]} 12. Nc3 {[%clk 0:02:26.5]} 12... Bb7
{[%clk 0:02:56.9]} 13. Rad1 {[%clk 0:02:10.3]} 13... g5 {[%clk 0:02:56]} 14.
Rfe1 {[%clk 0:01:40.9]} 14... g4 {[%clk 0:02:54.9]} 15. h4 {[%clk 0:01:38.2]}
15... Ne5 {[%clk 0:02:52.2]} 16. Bc2 {[%clk 0:01:32.8]} 16... Rg8 {[%clk
0:02:45.2]} 17. g3 {[%clk 0:01:24]} 17... Rc8 {[%clk 0:02:34.9]} 18. Qe3 {[%clk
0:01:12.7]} 18... Ng6 {[%clk 0:02:16]} 19. Ba3 {[%clk 0:00:43.3]} 19... Nd7
{[%clk 0:02:14.7]} 20. Ndb5 {[%clk 0:00:26.3]} 20... axb5 {[%clk 0:02:07.3]} 21.
Nxb5 {[%clk 0:00:27.2]} 21... Qb8 {[%clk 0:02:07.5]} 22. Bxd6 {[%clk 0:00:23.6]}
22... Bxd6 {[%clk 0:02:04.2]} 23. Nxd6+ {[%clk 0:00:24.5]} 23... Ke7 {[%clk
0:02:04.7]} 24. Qg5+ {[%clk 0:00:19.7]} 24... f6 {[%clk 0:01:47.8]} 25. Qh6
{[%clk 0:00:19.7]} 25... Ndf8 {[%clk 0:01:47.2]} 26. Nxc8+ {[%clk 0:00:12.9]}
26... Qxc8 {[%clk 0:01:43.3]} 27. Qd2 {[%clk 0:00:13.4]} 27... Qc7 {[%clk
0:01:39.6]} 28. Qb4+ {[%clk 0:00:13.1]} 28... Qc5 {[%clk 0:01:38.3]} 29. Qd2
{[%clk 0:00:10.8]} 29... Ne5 {[%clk 0:01:31.6]} 30. Qd8+ {[%clk 0:00:10.4]}
30... Kf7 {[%clk 0:01:32.2]} 31. Kf1 {[%clk 0:00:07.4]} 31... Qc8 {[%clk
0:01:24.7]} 32. Qd6 {[%clk 0:00:07.1]} 32... Nfd7 {[%clk 0:01:18.9]} 33. Qb4
{[%clk 0:00:06.1]} 33... Qc5 {[%clk 0:01:18.3]} 34. Qxc5 {[%clk 0:00:05.3]}
34... bxc5 {[%clk 0:01:12]} 35. Rd6 {[%clk 0:00:05.3]} 35... Ke7 {[%clk
0:01:12.3]} 36. Red1 {[%clk 0:00:04.6]} 36... Ra8 {[%clk 0:01:13.1]} 37. a4
{[%clk 0:00:04.6]} 37... Bc8 {[%clk 0:01:08.2]} 38. R6d2 {[%clk 0:00:04.3]}
38... Nc6 {[%clk 0:01:06.9]} 39. Ra1 {[%clk 0:00:04.5]} 39... Nb4 {[%clk
0:01:06.5]} 40. a5 {[%clk 0:00:04.3]} 40... Ne5 {[%clk 0:01:06.5]} 41. Bd1
{[%clk 0:00:04.6]} 41... Nec6 {[%clk 0:01:06.9]} 42. a6 {[%clk 0:00:03.9]} 42...
Nd4 {[%clk 0:01:07.3]} 43. Ra3 {[%clk 0:00:03.2]} 43... Rxa6 {[%clk 0:01:06]}
44. Rxa6 {[%clk 0:00:03.3]} 44... Nxa6 {[%clk 0:01:06.9]} 45. Ra2 {[%clk
0:00:02.9]} 45... Nb4 {[%clk 0:01:07.6]} 46. Ra7+ {[%clk 0:00:02.9]} 46... Bd7
{[%clk 0:01:08.1]} 47. Kg2 {[%clk 0:00:02.7]} 47... Kd6 {[%clk 0:01:05.1]} 48.
Kf1 {[%clk 0:00:02.7]} 48... Bc6 {[%clk 0:01:04.7]} 49. Ke1 {[%clk 0:00:02.5]}
49... Bxe4 {[%clk 0:01:04.3]} 50. Rf7 {[%clk 0:00:02.4]} 50... f5 {[%clk
0:01:01.6]} 51. Rh7 {[%clk 0:00:02.7]} 51... Bf3 {[%clk 0:01:00.3]} 52. Rxh5
{[%clk 0:00:02.5]} 52... Nd3+ {[%clk 0:00:59.9]} 53. Kd2 {[%clk 0:00:03.1]}
53... Nxf2 {[%clk 0:01:00.5]} 54. Rh8 {[%clk 0:00:01.9]} 54... Ne4+ {[%clk
0:01:00.1]} 55. Ke1 {[%clk 0:00:02]} 55... Nxg3 {[%clk 0:01:00.3]} 56. h5 {[%clk
0:00:02.2]} 56... Bxd1 {[%clk 0:00:59.3]} 57. Kxd1 {[%clk 0:00:03.1]} 57... f4
{[%clk 0:00:59.6]} 58. h6 {[%clk 0:00:03.4]} 58... f3 {[%clk 0:00:55.1]} 59. h7
{[%clk 0:00:04.3]} 59... f2 {[%clk 0:00:53.7]} 60. Rd8+ {[%clk 0:00:03.6]} 60...
Kc6 {[%clk 0:00:54.3]} 61. Rf8 {[%clk 0:00:03.5]} 61... Ndf5 {[%clk 0:00:53.6]}
62. h8=Q {[%clk 0:00:03.4]} 62... f1=Q+ {[%clk 0:00:53.6]} 63. Kd2 {[%clk
0:00:03.9]} 63... Qe2+ {[%clk 0:00:53.3]} 64. Kc3 {[%clk 0:00:04.4]} 64... Ne4#
{[%clk 0:00:52.2]} 0-1

[Event "Early-Titled-Tuesday-Blitz-February-20-2024"]
[Site "Chess.com"]
[Date "2024.02.20"]
[Round "6"]
[White "Jospem"]
[Black "tptagain"]
[Result "1-0"]
[WhiteElo "3095"]
[BlackElo "2977"]
[TimeControl "180+1"]
[EndTime "9:09:32 PST"]
[Termination "Jospem won by resignation"]

1. e4 {[%clk 0:03:00.9]} 1... c6 {[%clk 0:02:59.9]} 2. d4 {[%clk 0:03:01.5]}
2... d5 {[%clk 0:03:00.3]} 3. e5 {[%clk 0:03:02.2]} 3... Bf5 {[%clk 0:03:00.7]}
4. h4 {[%clk 0:03:02.7]} 4... h6 {[%clk 0:03:01.1]} 5. Bd3 {[%clk 0:03:03]} 5...
Bxd3 {[%clk 0:03:01.2]} 6. cxd3 {[%clk 0:03:03.9]} 6... e6 {[%clk 0:03:00]} 7.
Nf3 {[%clk 0:02:59.6]} 7... c5 {[%clk 0:02:55.2]} 8. dxc5 {[%clk 0:02:53.2]}
8... Bxc5 {[%clk 0:02:55.4]} 9. d4 {[%clk 0:02:53.9]} 9... Bb6 {[%clk
0:02:54.6]} 10. Nc3 {[%clk 0:02:52.9]} 10... Nc6 {[%clk 0:02:53.1]} 11. h5
{[%clk 0:02:39.5]} 11... Nge7 {[%clk 0:02:51.3]} 12. Ne2 {[%clk 0:02:37.3]}
12... Qd7 {[%clk 0:02:37.2]} 13. Rh4 {[%clk 0:02:34.4]} 13... O-O-O {[%clk
0:02:27.6]} 14. Bd2 {[%clk 0:02:28.6]} 14... f6 {[%clk 0:02:19.8]} 15. Rg4
{[%clk 0:02:14.9]} 15... Nf5 {[%clk 0:02:05.7]} 16. a4 {[%clk 0:02:02.3]} 16...
Ba5 {[%clk 0:01:34.6]} 17. Kf1 {[%clk 0:01:52.2]} 17... Kb8 {[%clk 0:01:30.7]}
18. Rb1 {[%clk 0:01:48.6]} 18... Bxd2 {[%clk 0:01:29.6]} 19. Qxd2 {[%clk
0:01:49.5]} 19... Rc8 {[%clk 0:01:17.9]} 20. Nf4 {[%clk 0:01:40.7]} 20... Nce7
{[%clk 0:01:15.5]} 21. Re1 {[%clk 0:01:35.9]} 21... Rc6 {[%clk 0:00:50.9]} 22.
exf6 {[%clk 0:01:36.1]} 22... gxf6 {[%clk 0:00:51.1]} 23. Ng6 {[%clk 0:01:36.8]}
23... Nxg6 {[%clk 0:00:21.4]} 24. Rxg6 {[%clk 0:01:37.7]} 24... Ka8 {[%clk
0:00:17.7]} 25. g4 {[%clk 0:01:31.8]} 25... Nd6 {[%clk 0:00:17.5]} 26. Qf4
{[%clk 0:01:19.3]} 26... Ne4 {[%clk 0:00:17.3]} 27. Re2 {[%clk 0:00:59]} 27...
a6 {[%clk 0:00:16.2]} 28. Kg2 {[%clk 0:00:58.1]} 28... Qh7 {[%clk 0:00:12.9]}
29. Nh4 {[%clk 0:00:47.9]} 29... Rhc8 {[%clk 0:00:12.5]} 30. Qxh6 {[%clk
0:00:45.6]} 30... Qd7 {[%clk 0:00:11.9]} 31. Rxf6 {[%clk 0:00:41.6]} 31... Rc2
{[%clk 0:00:10.1]} 32. Rxc2 {[%clk 0:00:39.6]} 32... Rxc2 {[%clk 0:00:11]} 33.
Rf8+ {[%clk 0:00:38.6]} 33... Ka7 {[%clk 0:00:11.2]} 34. Qe3 {[%clk 0:00:27.6]}
34... Qg7 {[%clk 0:00:11.3]} 35. Ng6 {[%clk 0:00:28]} 35... Rxb2 {[%clk
0:00:07.1]} 36. a5 {[%clk 0:00:28.1]} 36... Ra2 {[%clk 0:00:06.8]} 37. Qb3
{[%clk 0:00:20.8]} 37... Rxa5 {[%clk 0:00:05.5]} 38. f3 {[%clk 0:00:21.4]} 38...
Nd6 {[%clk 0:00:04.7]} 39. Qb4 {[%clk 0:00:12.8]} 39... Qc7 {[%clk 0:00:05.2]}
40. Kh3 {[%clk 0:00:12.3]} 40... Ne4 {[%clk 0:00:05]} 41. fxe4 {[%clk
0:00:10.6]} 41... Rb5 {[%clk 0:00:05.6]} 42. Qa3 {[%clk 0:00:09.8]} 42... dxe4
{[%clk 0:00:05.9]} 43. Ne5 {[%clk 0:00:09.4]} 43... e3 {[%clk 0:00:05.8]} 44.
Qxe3 {[%clk 0:00:09.1]} 44... Qb6 {[%clk 0:00:06.3]} 45. Rf3 {[%clk 0:00:07.7]}
45... Rb1 {[%clk 0:00:06.3]} 46. Kh4 {[%clk 0:00:08.3]} 46... a5 {[%clk
0:00:06.3]} 47. h6 {[%clk 0:00:07.6]} 47... Qd8+ {[%clk 0:00:06.8]} 48. g5
{[%clk 0:00:07.8]} 48... Rh1+ {[%clk 0:00:06.7]} 49. Rh3 {[%clk 0:00:08.3]}
49... Rf1 {[%clk 0:00:05.9]} 50. h7 {[%clk 0:00:06.5]} 50... Rf5 {[%clk
0:00:05.4]} 51. Kg4 {[%clk 0:00:06.2]} 51... Ka8 {[%clk 0:00:05.5]} 52. h8=Q
{[%clk 0:00:06]} 1-0

[Event "Early-Titled-Tuesday-Blitz-February-20-2024"]
[Site "Chess.com"]
[Date "2024.02.20"]
[Round "6"]
[White "jens1102"]
[Black "Sanan_Sjugirov"]
[Result "1/2-1/2"]
[WhiteElo "2719"]
[BlackElo "2898"]
[TimeControl "180+1"]
[EndTime "9:09:32 PST"]
[Termination "Game drawn - insufficient material"]

1. e4 {[%clk 0:03:00.9]} 1... c5 {[%clk 0:02:59.7]} 2. Nf3 {[%clk 0:03:01.2]}
2... Nc6 {[%clk 0:03:00.3]} 3. d4 {[%clk 0:03:01.1]} 3... cxd4 {[%clk
0:03:01.2]} 4. Nxd4 {[%clk 0:03:01.9]} 4... Nf6 {[%clk 0:03:01.6]} 5. Nc3 {[%clk
0:03:02.5]} 5... e5 {[%clk 0:03:02.3]} 6. Ndb5 {[%clk 0:03:03.2]} 6... d6 {[%clk
0:03:02.9]} 7. Bg5 {[%clk 0:03:03.5]} 7... a6 {[%clk 0:03:03.2]} 8. Na3 {[%clk
0:03:03.4]} 8... b5 {[%clk 0:03:03.9]} 9. Nd5 {[%clk 0:03:03.9]} 9... Be7 {[%clk
0:03:03.8]} 10. Bxf6 {[%clk 0:03:04.1]} 10... Bxf6 {[%clk 0:03:04.7]} 11. c3
{[%clk 0:03:04.8]} 11... Bg5 {[%clk 0:03:03.1]} 12. Nc2 {[%clk 0:03:03.5]} 12...
Ne7 {[%clk 0:03:03.2]} 13. Nce3 {[%clk 0:03:01.8]} 13... O-O {[%clk 0:02:54.2]}
14. g3 {[%clk 0:02:54]} 14... Bxe3 {[%clk 0:02:40.8]} 15. Nxe3 {[%clk
0:02:54.1]} 15... Be6 {[%clk 0:02:37]} 16. Bg2 {[%clk 0:02:51.7]} 16... Qb6
{[%clk 0:02:36.6]} 17. O-O {[%clk 0:02:51.2]} 17... Rad8 {[%clk 0:02:34]} 18.
Qd3 {[%clk 0:02:42.1]} 18... f5 {[%clk 0:02:19.2]} 19. exf5 {[%clk 0:02:39]}
19... Nxf5 {[%clk 0:02:20.1]} 20. Nd5 {[%clk 0:02:36.8]} 20... Qa7 {[%clk
0:02:18.1]} 21. a4 {[%clk 0:02:35.8]} 21... bxa4 {[%clk 0:01:42.4]} 22. Rxa4
{[%clk 0:02:33.9]} 22... Bc8 {[%clk 0:01:42.5]} 23. b4 {[%clk 0:02:24.8]} 23...
Qf7 {[%clk 0:01:35.5]} 24. Nb6 {[%clk 0:02:20.6]} 24... Be6 {[%clk 0:01:28.8]}
25. Qxa6 {[%clk 0:02:06]} 25... d5 {[%clk 0:01:26.4]} 26. Ra5 {[%clk 0:01:58.7]}
26... e4 {[%clk 0:01:24.7]} 27. Qa7 {[%clk 0:01:31.9]} 27... Qg6 {[%clk
0:01:18.1]} 28. c4 {[%clk 0:00:59.5]} 28... dxc4 {[%clk 0:00:24.6]} 29. Bxe4
{[%clk 0:00:58.4]} 29... Qg4 {[%clk 0:00:10.5]} 30. Bg2 {[%clk 0:00:54.1]} 30...
c3 {[%clk 0:00:08.1]} 31. Qc7 {[%clk 0:00:51.4]} 31... Qxb4 {[%clk 0:00:07.1]}
32. Rc5 {[%clk 0:00:42.7]} 32... Nd4 {[%clk 0:00:04.9]} 33. Rg5 {[%clk
0:00:31.5]} 33... Bf7 {[%clk 0:00:03.1]} 34. Nd5 {[%clk 0:00:30]} 34... Qd6
{[%clk 0:00:01.5]} 35. Qxd6 {[%clk 0:00:15.4]} 35... Ne2+ {[%clk 0:00:02]} 36.
Kh1 {[%clk 0:00:14.2]} 36... Rxd6 {[%clk 0:00:02.9]} 37. Re1 {[%clk 0:00:13.5]}
37... Bxd5 {[%clk 0:00:02.8]} 38. Bxd5+ {[%clk 0:00:13.4]} 38... Rxd5 {[%clk
0:00:02.6]} 39. Rxd5 {[%clk 0:00:13.9]} 39... c2 {[%clk 0:00:03.5]} 40. Rc5
{[%clk 0:00:12.5]} 40... c1=Q {[%clk 0:00:02.8]} 41. Rcxc1 {[%clk 0:00:10.9]}
41... Nxc1 {[%clk 0:00:03.7]} 42. Rxc1 {[%clk 0:00:10.8]} 42... Rxf2 {[%clk
0:00:04.4]} 43. Kg1 {[%clk 0:00:11.6]} 43... Rd2 {[%clk 0:00:04.7]} 44. Rf1
{[%clk 0:00:12.4]} 44... h5 {[%clk 0:00:05.1]} 45. Rf2 {[%clk 0:00:13.1]} 45...
Rd4 {[%clk 0:00:05.1]} 46. Kg2 {[%clk 0:00:13.7]} 46... Kh7 {[%clk 0:00:05.7]}
47. Ra2 {[%clk 0:00:13.2]} 47... g5 {[%clk 0:00:06.1]} 48. Ra6 {[%clk
0:00:13.3]} 48... Kg7 {[%clk 0:00:06.3]} 49. h4 {[%clk 0:00:11.5]} 49... gxh4
{[%clk 0:00:06.2]} 50. gxh4 {[%clk 0:00:12.4]} 50... Rxh4 {[%clk 0:00:06.8]} 51.
Kg3 {[%clk 0:00:13.1]} 51... Rg4+ {[%clk 0:00:07.4]} 52. Kh3 {[%clk 0:00:13.5]}
52... Rg6 {[%clk 0:00:07.7]} 53. Rxg6+ {[%clk 0:00:13.3]} 53... Kxg6 {[%clk
0:00:08.6]} 54. Kh2 {[%clk 0:00:14.2]} 54... h4 {[%clk 0:00:09.2]} 55. Kh1
{[%clk 0:00:15.1]} 55... h3 {[%clk 0:00:10.1]} 56. Kg1 {[%clk 0:00:16]} 56...
h2+ {[%clk 0:00:11]} 57. Kh1 {[%clk 0:00:16.9]} 57... Kg5 {[%clk 0:00:11.3]} 58.
Kxh2 {[%clk 0:00:17.8]} 1/2-1/2

[Event "Early-Titled-Tuesday-Blitz-February-20-2024"]
[Site "Chess.com"]
[Date "2024.02.20"]
[Round "6"]
[White "Bigfish1995"]
[Black "Byniolus"]
[Result "1-0"]
[WhiteElo "3170"]
[BlackElo "2830"]
[TimeControl "180+1"]
[EndTime "9:09:34 PST"]
[Termination "Bigfish1995 won by resignation"]

1. e4 {[%clk 0:02:52.4]} 1... d6 {[%clk 0:02:57.3]} 2. d4 {[%clk 0:02:47.4]}
2... Nf6 {[%clk 0:02:58.2]} 3. Nc3 {[%clk 0:02:47.1]} 3... c6 {[%clk 0:02:57.6]}
4. f4 {[%clk 0:02:43.9]} 4... Qb6 {[%clk 0:02:57.5]} 5. e5 {[%clk 0:02:42.5]}
5... Nd5 {[%clk 0:02:57.1]} 6. Ne4 {[%clk 0:02:41.3]} 6... dxe5 {[%clk
0:02:53.5]} 7. fxe5 {[%clk 0:02:39]} 7... Bf5 {[%clk 0:02:51.9]} 8. Ng3 {[%clk
0:02:37.5]} 8... Bg6 {[%clk 0:02:51.8]} 9. a3 {[%clk 0:02:26.9]} 9... e6 {[%clk
0:02:41.8]} 10. c4 {[%clk 0:02:25.8]} 10... Ne7 {[%clk 0:02:41.9]} 11. Nf3
{[%clk 0:02:16.4]} 11... Nf5 {[%clk 0:02:26]} 12. Nxf5 {[%clk 0:01:54]} 12...
Bxf5 {[%clk 0:02:26.9]} 13. c5 {[%clk 0:01:51.5]} 13... Qd8 {[%clk 0:02:20.6]}
14. Be3 {[%clk 0:01:51.3]} 14... Be7 {[%clk 0:02:14.5]} 15. b4 {[%clk
0:01:45.4]} 15... Na6 {[%clk 0:02:11.6]} 16. Bxa6 {[%clk 0:01:35.8]} 16... bxa6
{[%clk 0:02:12.5]} 17. O-O {[%clk 0:01:24.2]} 17... O-O {[%clk 0:02:10.5]} 18.
Nd2 {[%clk 0:01:24]} 18... Qd5 {[%clk 0:02:01.8]} 19. Qe2 {[%clk 0:01:19.2]}
19... a5 {[%clk 0:02:00.4]} 20. Nc4 {[%clk 0:01:12.9]} 20... axb4 {[%clk
0:01:57.7]} 21. axb4 {[%clk 0:01:13.8]} 21... Rfb8 {[%clk 0:01:49.1]} 22. Ra4
{[%clk 0:01:13.3]} 22... Be4 {[%clk 0:01:33.8]} 23. Rfa1 {[%clk 0:01:11.3]}
23... Qd8 {[%clk 0:01:14.4]} 24. Nd6 {[%clk 0:00:51.1]} 24... Bd5 {[%clk
0:01:05.9]} 25. Bd2 {[%clk 0:00:51.5]} 25... Qd7 {[%clk 0:00:59.3]} 26. R1a3
{[%clk 0:00:50.2]} 26... f5 {[%clk 0:00:49.7]} 27. Qh5 {[%clk 0:00:39]} 27...
Bf8 {[%clk 0:00:43.9]} 28. Rg3 {[%clk 0:00:35.6]} 28... g6 {[%clk 0:00:35.3]}
29. Bh6 {[%clk 0:00:34.9]} 29... a5 {[%clk 0:00:27]} 30. Rxg6+ {[%clk
0:00:22.6]} 30... hxg6 {[%clk 0:00:23.8]} 31. Qxg6+ {[%clk 0:00:23.5]} 31... Bg7
{[%clk 0:00:14.1]} 32. Ra3 {[%clk 0:00:22.5]} 32... axb4 {[%clk 0:00:09]} 33.
Rg3 {[%clk 0:00:20.5]} 33... Ra1+ {[%clk 0:00:07.9]} 34. Kf2 {[%clk 0:00:20.5]}
34... Ra2+ {[%clk 0:00:08.7]} 35. Ke1 {[%clk 0:00:20.6]} 35... Rxg2 {[%clk
0:00:06.9]} 36. Rxg2 {[%clk 0:00:17.2]} 36... Bxg2 {[%clk 0:00:07.8]} 37. Bxg7
{[%clk 0:00:16.5]} 37... Qxg7 {[%clk 0:00:06.3]} 38. Qxe6+ {[%clk 0:00:17]}
38... Kh8 {[%clk 0:00:06.2]} 39. Nxf5 {[%clk 0:00:16.9]} 39... Qg5 {[%clk
0:00:05.1]} 40. Qd6 {[%clk 0:00:15.4]} 40... Ra8 {[%clk 0:00:03.6]} 41. Qe6
{[%clk 0:00:07.8]} 41... Ra1+ {[%clk 0:00:03]} 42. Ke2 {[%clk 0:00:07.1]} 42...
Bf1+ {[%clk 0:00:03.5]} 43. Kf3 {[%clk 0:00:07.3]} 43... Qh5+ {[%clk 0:00:03.4]}
44. Kf4 {[%clk 0:00:06.9]} 44... Qxh2+ {[%clk 0:00:02.1]} 45. Kg5 {[%clk
0:00:07.5]} 45... Qh7 {[%clk 0:00:01.3]} 46. Qf6+ {[%clk 0:00:07]} 46... Kg8
{[%clk 0:00:01.6]} 47. Ne7+ {[%clk 0:00:07.7]} 47... Qxe7 {[%clk 0:00:02.3]} 48.
Qxe7 {[%clk 0:00:08.5]} 48... b3 {[%clk 0:00:01.7]} 49. Qd8+ {[%clk 0:00:09.2]}
49... Kg7 {[%clk 0:00:02]} 50. Qd7+ {[%clk 0:00:09.3]} 50... Kg8 {[%clk
0:00:02.5]} 51. Qc8+ {[%clk 0:00:09.9]} 51... Kg7 {[%clk 0:00:03]} 52. Qb7+
{[%clk 0:00:10.6]} 52... Kg8 {[%clk 0:00:03.4]} 53. Qxb3+ {[%clk 0:00:11.2]} 1-0

[Event "Early-Titled-Tuesday-Blitz-February-20-2024"]
[Site "Chess.com"]
[Date "2024.02.20"]
[Round "6"]
[White "hansen"]
[Black "SaiAgni_98"]
[Result "1-0"]
[WhiteElo "2908"]
[BlackElo "2572"]
[TimeControl "180+1"]
[EndTime "9:09:34 PST"]
[Termination "hansen won on time"]

1. e4 {[%clk 0:03:00.9]} 1... e6 {[%clk 0:02:58.3]} 2. d4 {[%clk 0:02:53.5]}
2... d5 {[%clk 0:02:58.5]} 3. Nc3 {[%clk 0:02:54.4]} 3... Bb4 {[%clk 0:02:52.8]}
4. e5 {[%clk 0:02:35.8]} 4... c5 {[%clk 0:02:52.5]} 5. a3 {[%clk 0:02:35.7]}
5... Bxc3+ {[%clk 0:02:52.5]} 6. bxc3 {[%clk 0:02:36.6]} 6... Qa5 {[%clk
0:02:53.3]} 7. Bd2 {[%clk 0:02:36.9]} 7... Qa4 {[%clk 0:02:53.3]} 8. Qb1 {[%clk
0:02:37.6]} 8... c4 {[%clk 0:02:43.7]} 9. Nf3 {[%clk 0:02:38]} 9... Nc6 {[%clk
0:02:42.6]} 10. Be2 {[%clk 0:02:38.7]} 10... Nge7 {[%clk 0:02:39.4]} 11. O-O
{[%clk 0:02:39.2]} 11... O-O {[%clk 0:02:31.6]} 12. Re1 {[%clk 0:02:38.6]} 12...
Rb8 {[%clk 0:02:25.9]} 13. h4 {[%clk 0:02:38.1]} 13... Bd7 {[%clk 0:02:24.1]}
14. Nh2 {[%clk 0:02:35]} 14... f5 {[%clk 0:02:10.2]} 15. exf6 {[%clk 0:02:22.2]}
15... Rxf6 {[%clk 0:02:10.4]} 16. Bg5 {[%clk 0:02:17.8]} 16... Rf7 {[%clk
0:02:02.7]} 17. Bh5 {[%clk 0:02:18]} 17... Ng6 {[%clk 0:01:56.1]} 18. Ng4 {[%clk
0:02:15.4]} 18... Qa5 {[%clk 0:01:49.6]} 19. Re3 {[%clk 0:02:13.3]} 19... Qc7
{[%clk 0:01:47.7]} 20. Qe1 {[%clk 0:02:10.7]} 20... Rbf8 {[%clk 0:01:47.2]} 21.
Qe2 {[%clk 0:01:49.7]} 21... Rf5 {[%clk 0:01:40.1]} 22. Bxg6 {[%clk 0:01:44.2]}
22... hxg6 {[%clk 0:01:41]} 23. Re1 {[%clk 0:01:44.5]} 23... Qd6 {[%clk
0:01:36.1]} 24. f3 {[%clk 0:01:38.5]} 24... Qxa3 {[%clk 0:01:25.8]} 25. f4
{[%clk 0:01:14.8]} 25... a5 {[%clk 0:01:17.3]} 26. Rg3 {[%clk 0:01:11.9]} 26...
Nxd4 {[%clk 0:01:12.5]} 27. Qd2 {[%clk 0:00:35.7]} 27... Nc6 {[%clk 0:01:12.5]}
28. Ne3 {[%clk 0:00:36.1]} 28... R5f7 {[%clk 0:01:10.8]} 29. Qd1 {[%clk
0:00:28]} 29... Qxc3 {[%clk 0:01:03.6]} 30. h5 {[%clk 0:00:20.8]} 30... gxh5
{[%clk 0:00:44.5]} 31. Kh2 {[%clk 0:00:19.2]} 31... Qd4 {[%clk 0:00:29.8]} 32.
Qxh5 {[%clk 0:00:18.1]} 32... Be8 {[%clk 0:00:28.9]} 33. Rh3 {[%clk 0:00:11.6]}
33... g6 {[%clk 0:00:14.7]} 34. Qxg6+ {[%clk 0:00:04.1]} 34... Qg7 {[%clk
0:00:14.9]} 35. Qxe6 {[%clk 0:00:04.4]} 35... Nd4 {[%clk 0:00:13.6]} 36. Qxd5
{[%clk 0:00:04.3]} 36... Bc6 {[%clk 0:00:13.5]} 37. Qxc4 {[%clk 0:00:03.6]}
37... b5 {[%clk 0:00:13]} 38. Qa2 {[%clk 0:00:03.7]} 38... b4 {[%clk 0:00:10.4]}
39. Ng4 {[%clk 0:00:03.8]} 39... b3 {[%clk 0:00:09.1]} 40. cxb3 {[%clk
0:00:03.9]} 40... Qg6 {[%clk 0:00:07.1]} 41. Qb2 {[%clk 0:00:02.3]} 41... Rd7
{[%clk 0:00:03.9]} 42. Ne5 {[%clk 0:00:01.2]} 42... Qc2 {[%clk 0:00:03]} 43.
Qxc2 {[%clk 0:00:01.3]} 43... Nxc2 {[%clk 0:00:03.2]} 44. Rc1 {[%clk 0:00:02]}
44... Rd2 {[%clk 0:00:02.6]} 45. Nxc6 {[%clk 0:00:02]} 1-0

[Event "Early-Titled-Tuesday-Blitz-February-20-2024"]
[Site "Chess.com"]
[Date "2024.02.20"]
[Round "6"]
[White "guillembaches"]
[Black "ChessSwole"]
[Result "1/2-1/2"]
[WhiteElo "2529"]
[BlackElo "2673"]
[TimeControl "180+1"]
[EndTime "9:09:36 PST"]
[Termination "Game drawn by repetition"]

1. d4 {[%clk 0:03:00.9]} 1... Nf6 {[%clk 0:02:59.1]} 2. Nf3 {[%clk 0:03:01.4]}
2... b6 {[%clk 0:02:59.3]} 3. Bg5 {[%clk 0:03:00.2]} 3... e6 {[%clk 0:02:58.4]}
4. Nbd2 {[%clk 0:02:59.8]} 4... Bb7 {[%clk 0:02:56.9]} 5. e3 {[%clk 0:02:59.9]}
5... Be7 {[%clk 0:02:56.6]} 6. Bd3 {[%clk 0:02:59.6]} 6... d5 {[%clk 0:02:56.5]}
7. O-O {[%clk 0:02:58]} 7... O-O {[%clk 0:02:56.6]} 8. c3 {[%clk 0:02:57.2]}
8... c5 {[%clk 0:02:52.4]} 9. Ne5 {[%clk 0:02:53]} 9... Ba6 {[%clk 0:02:51.1]}
10. Bxa6 {[%clk 0:02:47.2]} 10... Nxa6 {[%clk 0:02:52]} 11. Qe2 {[%clk
0:02:45.7]} 11... Nb8 {[%clk 0:02:51]} 12. f4 {[%clk 0:02:45.3]} 12... Nfd7
{[%clk 0:02:49.6]} 13. Bxe7 {[%clk 0:02:42.7]} 13... Qxe7 {[%clk 0:02:50.5]} 14.
Ndf3 {[%clk 0:02:36.2]} 14... f6 {[%clk 0:02:49.1]} 15. Nxd7 {[%clk 0:02:35.6]}
15... Qxd7 {[%clk 0:02:47.7]} 16. e4 {[%clk 0:02:35.1]} 16... cxd4 {[%clk
0:02:44.3]} 17. Nxd4 {[%clk 0:02:32.4]} 17... Re8 {[%clk 0:02:21.6]} 18. Rad1
{[%clk 0:02:22.8]} 18... Nc6 {[%clk 0:02:17.8]} 19. Qb5 {[%clk 0:02:11.2]} 19...
Nb8 {[%clk 0:01:51.2]} 20. exd5 {[%clk 0:02:00.2]} 20... exd5 {[%clk 0:01:49.6]}
21. Qxd7 {[%clk 0:01:52.4]} 21... Nxd7 {[%clk 0:01:50.5]} 22. Nb5 {[%clk
0:01:52.5]} 22... Re2 {[%clk 0:01:48]} 23. Rf2 {[%clk 0:01:44.9]} 23... Rae8
{[%clk 0:01:42.5]} 24. Rxd5 {[%clk 0:01:37.9]} 24... Nc5 {[%clk 0:01:39.6]} 25.
Rd2 {[%clk 0:01:22.5]} 25... Rxf2 {[%clk 0:01:36.6]} 26. Rxf2 {[%clk 0:01:20.4]}
26... Nd3 {[%clk 0:01:31.8]} 27. Rf1 {[%clk 0:01:06.6]} 27... Re2 {[%clk
0:01:18.8]} 28. Nxa7 {[%clk 0:00:55.8]} 28... Rxb2 {[%clk 0:01:18.3]} 29. Nc6
{[%clk 0:00:50.1]} 29... Rxa2 {[%clk 0:01:14.7]} 30. Ne7+ {[%clk 0:00:44.8]}
30... Kf7 {[%clk 0:01:14.1]} 31. Nd5 {[%clk 0:00:45]} 31... Rb2 {[%clk
0:01:09.1]} 32. g3 {[%clk 0:00:41.8]} 32... Ke6 {[%clk 0:01:05.1]} 33. Ne3
{[%clk 0:00:38.8]} 33... h5 {[%clk 0:00:59]} 34. Rd1 {[%clk 0:00:32.3]} 34...
Nc5 {[%clk 0:00:53.6]} 35. Nc4 {[%clk 0:00:29.3]} 35... Rc2 {[%clk 0:00:45.9]}
36. Nxb6 {[%clk 0:00:26.8]} 36... Rxc3 {[%clk 0:00:43.3]} 37. Nd5 {[%clk
0:00:26.5]} 37... Rc2 {[%clk 0:00:42]} 38. Ne3 {[%clk 0:00:25.2]} 38... Ra2
{[%clk 0:00:40.6]} 39. Rc1 {[%clk 0:00:20.6]} 39... Ne4 {[%clk 0:00:37.5]} 40.
Rc2 {[%clk 0:00:20.1]} 40... Ra3 {[%clk 0:00:35.9]} 41. Nf1 {[%clk 0:00:19.6]}
41... Kf5 {[%clk 0:00:33.5]} 42. Kg2 {[%clk 0:00:18.6]} 42... h4 {[%clk
0:00:29.8]} 43. Re2 {[%clk 0:00:18]} 43... Nc3 {[%clk 0:00:24.1]} 44. Rc2 {[%clk
0:00:15.6]} 44... Nd5 {[%clk 0:00:23]} 45. Rd2 {[%clk 0:00:14.3]} 45... h3+
{[%clk 0:00:22]} 46. Kf2 {[%clk 0:00:11.5]} 46... Nc3 {[%clk 0:00:20.7]} 47.
Ne3+ {[%clk 0:00:10.9]} 47... Ke4 {[%clk 0:00:19.9]} 48. Nc4 {[%clk 0:00:10.9]}
48... Ra2 {[%clk 0:00:16.9]} 49. Rxa2 {[%clk 0:00:09.2]} 49... Nxa2 {[%clk
0:00:17.1]} 50. Nd6+ {[%clk 0:00:09.5]} 50... Kd5 {[%clk 0:00:17]} 51. Ne8
{[%clk 0:00:09.7]} 51... Ke4 {[%clk 0:00:12.7]} 52. Nxg7 {[%clk 0:00:09.6]}
52... Nc3 {[%clk 0:00:12.6]} 53. Nh5 {[%clk 0:00:09]} 53... Kf5 {[%clk
0:00:09.1]} 54. Ng7+ {[%clk 0:00:08.8]} 54... Ke4 {[%clk 0:00:09.4]} 55. Nh5
{[%clk 0:00:08.9]} 55... Kf5 {[%clk 0:00:09.7]} 56. Ng7+ {[%clk 0:00:09.2]}
56... Ke4 {[%clk 0:00:10.2]} 1/2-1/2